[Event "EYCC Girls U20 2021"]
[Site "Tornelo"]
[Date "2021.10.15"]
[Round "1.1"]
[White "Hereklioglu, Sude"]
[Black "Heydarova, Aytaj"]
[Result "0-1"]
[ECO "B52"]
[WhiteElo "1905"]
[BlackElo "1637"]
[Annotator "NA"]
[PlyCount "128"]
[EventDate "2021.10.15"]
[EventType "swiss"]
[EventCountry "NET"]
[SourceTitle "playchess.com"]
[Source "ChessBase"]
[SourceQuality "1"]
[TimeControl "5400+30"]

1. e4 {[%emt 0:00:30]} c5 {[%emt 0:00:33]} 2. Nf3 {[%emt 0:00:04]} d6 {[%emt 0:00:03]} 3. Bb5+ {[%emt 0:00:03]} Bd7 {[%emt 0:00:02]} 4. Bxd7+ {[%emt 0:00:04]} Qxd7 {[%emt 0:00:02]} 5. c4 {[%emt 0:00:05]} Nf6 {[%emt 0:00:10]} 6. Nc3 {[%emt 0:00:03]} Nc6 {[%emt 0:00:07]} 7. O-O {[%emt 0:00:14]} g6 {[%emt 0:00:24]} 8. d4 {[%emt 0:00:03]} cxd4 {[%emt 0:00:03]} 9. Nxd4 {[%emt 0:00:03]} Bg7 {[%emt 0:00:13]} 10. Be3 {[%emt 0:02:25]} O-O {[%emt 0:00:28]} 11. f3 {[%emt 0:00:16]} Rfc8 {[%emt 0:11:13]} 12. b3 $14 {[%emt 0:00:34]} Qd8 {[%emt 0:10:30]} 13. Qd2 {[%emt 0:01:52]} Nxd4 {[%emt 0:05:17]} 14. Bxd4 {[%emt 0:00:28]} Qa5 {[%emt 0:00:07]} 15. a4 {[%emt 0:02:39]} d5 {[%emt 0:30:45]} 16. exd5 {[%emt 0:15:11]} Nxd5 {[%emt 0:01:29]} 17. Bxg7 {[%emt 0:00:27]} Kxg7 {[%emt 0:00:05]} 18. Qxd5 {[%emt 0:02:39]} Qxc3 {[%emt 0:00:06]} 19. Qxb7 {[%emt 0:00:08]} Qe3+ {[%emt 0:00:10]} 20. Kh1 {[%emt 0:00:13]} Rab8 {[%emt 0:04:46]} 21. Qa6 {[%emt 0:01:31]} Rc7 {[%emt 0:00:34]} 22. Qa5 {[%emt 0:04:20]} Rcb7 {[%emt 0:01:29]} 23. c5 {[%emt 0:02:48]} Rxb3 {[%emt 0:08:38]} 24. Rac1 {[%emt 0:11:11]} Qg5 {[%emt 0:03:27]} 25. f4 {[%emt 0:02:10]} Qd5 {[%emt 0:03:47]} 26. Rfd1 {[%emt 0:01:19]} Qc6 {[%emt 0:03:00]} 27. Qxa7 {[%emt 0:02:22]} R3b7 {[%emt 0:00:09]} 28. Qa5 {[%emt 0:00:25]} Rb4 {[%emt 0:00:07]} 29. Rd8 {[%emt 0:02:31]} R8b7 {[%emt 0:03:10]} 30. Ra8 {[%emt 0:10:14]} Rb1 {[%emt 0:03:04]} 31. Qc3+ {[%emt 0:07:51]} f6 {[%emt 0:00:21]} 32. Rd8 {[%emt 0:06:29]} Qxa4 {[%emt 0:04:00]} 33. Qe1 {[%emt 0:10:06]} Rxc1 {[%emt 0:01:03]} 34. Qxc1 {[%emt 0:00:04]} Qxf4 {[%emt 0:00:18]} 35. Rd1 {[%emt 0:03:41]} Qxc1 {[%emt 0:00:19]} 36. Rxc1 {[%emt 0:00:03]} Rc7 {[%emt 0:00:02]} 37. g4 {[%emt 0:01:13]} Kf7 {[%emt 0:00:38]} 38. Kg2 {[%emt 0:00:26]} Ke6 {[%emt 0:00:07]} 39. Kf3 {[%emt 0:00:10]} Kd5 {[%emt 0:00:10]} 40. Rd1+ {[%emt 0:00:11]} Kxc5 {[%emt 0:01:01]} 41. Ke4 {[%emt 0:00:14]} Ra7 {[%emt 0:00:54]} 42. h4 {[%emt 0:01:42]} Ra4+ {[%emt 0:01:38]} 43. Kf3 {[%emt 0:00:06]} Rd4 {[%emt 0:00:41]} 44. Rc1+ {[%emt 0:01:02]} Kd6 {[%emt 0:00:51]} 45. Rc8 {[%emt 0:01:43]} Rd3+ {[%emt 0:00:33]} 46. Kg2 {[%emt 0:00:50]} Ke5 {[%emt 0:01:58]} 47. Rh8 {[%emt 0:01:27]} Kf4 {[%emt 0:00:24]} 48. h5 {[%emt 0:00:04]} Rg3+ {[%emt 0:02:50]} 49. Kf2 {[%emt 0:00:23]} Rxg4 {[%emt 0:00:07]} 50. h6 {[%emt 0:00:14]} Rh4 {[%emt 0:00:06]} 51. Rxh7 {[%emt 0:00:09]} Kg5 {[%emt 0:00:04]} 52. Rxe7 {[%emt 0:00:20]} Rxh6 {[%emt 0:00:06]} 53. Kg3 {[%emt 0:00:11]} Rh1 {[%emt 0:00:06]} 54. Rb7 {[%emt 0:00:23]} Ra1 {[%emt 0:00:16]} 55. Rb5+ {[%emt 0:00:13]} f5 {[%emt 0:00:03]} 56. Rb3 {[%emt 0:00:12]} Rh1 {[%emt 0:00:38]} 57. Kg2 {[%emt 0:00:10]} Rh4 {[%emt 0:00:09]} 58. Kg3 {[%emt 0:00:32]} f4+ {[%emt 0:00:06]} 59. Kg2 {[%emt 0:00:06]} Kg4 {[%emt 0:00:03]} 60. Rb4 {[%emt 0:00:37]} Rh8 {[%emt 0:00:16]} 61. Ra4 {[%emt 0:00:10]} Rb8 {[%emt 0:00:05]} 62. Ra2 {[%emt 0:00:07]} g5 {[%emt 0:00:20]} 63. Rc2 {[%emt 0:00:06]} Rb5 {[%emt 0:00:09]} 64. Ra2 {[%emt 0:00:07]} Kf5 {[%emt 0:00:42]} 0-1

[Event "EYCC Girls U20 2021"]
[Site "Tornelo"]
[Date "2021.10.15"]
[Round "1.2"]
[White "Sliwicka, Alicja"]
[Black "Cvitan, Ena"]
[Result "1-0"]
[ECO "B33"]
[WhiteElo "2304"]
[BlackElo "2260"]
[Annotator "NA"]
[PlyCount "183"]
[EventDate "2021.10.15"]
[EventType "swiss"]
[EventCountry "NET"]
[SourceTitle "playchess.com"]
[Source "ChessBase"]
[SourceQuality "1"]
[TimeControl "5400+30"]

1. e4 {[%emt 0:00:30]} c5 {[%emt 0:00:36]} 2. Nf3 {[%emt 0:00:10]} Nc6 {[%emt 0:00:08]} 3. d4 {[%emt 0:00:08]} cxd4 {[%emt 0:00:07]} 4. Nxd4 {[%emt 0:00:04]} Nf6 {[%emt 0:00:26]} 5. Nc3 {[%emt 0:00:08]} h5 {[%emt 0:00:12]} 6. h3 {[%emt 0:03:00]} e5 {[%emt 0:00:48]} 7. Ndb5 {[%emt 0:03:51]} d6 {[%emt 0:00:56]} 8. a4 {[%emt 0:03:59]} a6 {[%emt 0:07:00]} 9. Na3 $11 {[%emt 0:00:07]} Be6 {[%emt 0:03:28]} 10. Bc4 {[%emt 0:04:33]} Qd7 {[%emt 0:17:12]} 11. Bg5 {[%emt 0:05:25]} Be7 {[%emt 0:09:36]} 12. Bxf6 {[%emt 0:03:31]} Bxf6 {[%emt 0:05:26]} 13. Nd5 {[%emt 0:07:07]} Bxd5 {[%emt 0:05:34]} 14. Bxd5 {[%emt 0:00:21]} Rd8 {[%emt 0:09:05]} 15. c3 {[%emt 0:02:53]} Qc7 {[%emt 0:02:39]} 16. Qd2 {[%emt 0:11:17]} Rh6 {[%emt 0:01:49]} 17. h4 {[%emt 0:01:26]} Rg6 {[%emt 0:06:14]} 18. g3 {[%emt 0:00:52]} Rg4 {[%emt 0:00:35]} 19. Nc4 {[%emt 0:01:35]} Ne7 {[%emt 0:04:02]} 20. Ne3 {[%emt 0:00:57]} Rg6 {[%emt 0:00:15]} 21. Qe2 {[%emt 0:02:23]} Qb6 {[%emt 0:02:36]} 22. a5 {[%emt 0:02:33]} Qc7 {[%emt 0:02:25]} 23. Qxh5 {[%emt 0:01:34]} Nc6 {[%emt 0:00:16]} 24. Qh7 {[%emt 0:03:25]} Ne7 {[%emt 0:01:45]} 25. Nf5 {[%emt 0:04:19]} Qc5 {[%emt 0:06:18]} 26. Rd1 {[%emt 0:05:47]} Qxa5 {[%emt 0:00:43]} 27. O-O {[%emt 0:03:53]} Kf8 {[%emt 0:00:42]} 28. Qh8+ {[%emt 0:01:34]} Ng8 {[%emt 0:00:08]} 29. b4 {[%emt 0:03:17]} Qc7 {[%emt 0:00:07]} 30. Rd3 {[%emt 0:00:12]} a5 {[%emt 0:01:17]} 31. Rfd1 {[%emt 0:03:52]} a4 {[%emt 0:01:20]} 32. Ba2 {[%emt 0:01:27]} Be7 {[%emt 0:01:06]} 33. h5 {[%emt 0:02:43]} Rg5 {[%emt 0:00:08]} 34. h6 {[%emt 0:01:50]} gxh6 {[%emt 0:00:04]} 35. Qh7 {[%emt 0:00:22]} Rxf5 {[%emt 0:01:55]} 36. Qxf5 {[%emt 0:01:15]} Nf6 {[%emt 0:00:16]} 37. Kg2 {[%emt 0:00:35]} b5 {[%emt 0:00:26]} 38. Rh1 {[%emt 0:02:50]} Kg7 {[%emt 0:00:07]} 39. g4 {[%emt 0:02:08]} Qc8 {[%emt 0:00:38]} 40. Rg3 {[%emt 0:00:32]} Qxf5 {[%emt 0:01:47]} 41. gxf5+ {[%emt 0:00:05]} Kh7 {[%emt 0:00:09]} 42. Bxf7 {[%emt 0:03:43]} Nxe4 {[%emt 0:00:10]} 43. f6 {[%emt 0:01:19]} Nxf6 {[%emt 0:00:53]} 44. Bg6+ {[%emt 0:02:11]} Kg7 {[%emt 0:00:04]} 45. Bd3+ {[%emt 0:00:04]} Kf7 {[%emt 0:00:15]} 46. Bxb5 {[%emt 0:00:05]} a3 {[%emt 0:01:00]} 47. c4 {[%emt 0:00:15]} d5 {[%emt 0:00:24]} 48. Rxa3 {[%emt 0:00:18]} Bxb4 {[%emt 0:00:19]} 49. Ra6 {[%emt 0:01:46]} Kg6 {[%emt 0:00:28]} 50. cxd5 {[%emt 0:00:57]} Rxd5 {[%emt 0:00:12]} 51. Ba4 {[%emt 0:00:40]} Rd2 {[%emt 0:00:40]} 52. Rd1 {[%emt 0:00:44]} Rxd1 {[%emt 0:00:47]} 53. Bxd1 {[%emt 0:00:05]} Kg5 {[%emt 0:02:31]} 54. Ra7 {[%emt 0:00:17]} Nh5 {[%emt 0:01:07]} 55. Kf3 {[%emt 0:00:46]} Bc5 {[%emt 0:00:39]} 56. Ra5 {[%emt 0:00:22]} Bd4 {[%emt 0:00:19]} 57. Bc2 {[%emt 0:00:32]} Nf4 {[%emt 0:00:20]} 58. Ra8 {[%emt 0:00:57]} h5 {[%emt 0:01:57]} 59. Rg8+ {[%emt 0:00:47]} Kf6 {[%emt 0:00:52]} 60. Kg3 {[%emt 0:00:59]} Ne2+ {[%emt 0:00:52]} 61. Kg2 {[%emt 0:01:14]} Nf4+ {[%emt 0:00:09]} 62. Kf3 {[%emt 0:00:04]} h4 {[%emt 0:00:43]} 63. Be4 {[%emt 0:00:42]} Nh3 {[%emt 0:00:41]} 64. Rg6+ {[%emt 0:00:51]} Kf7 {[%emt 0:00:31]} 65. Rg4 {[%emt 0:00:24]} Nxf2 {[%emt 0:01:13]} 66. Bd5+ {[%emt 0:00:17]} Kf6 {[%emt 0:00:12]} 67. Rxh4 {[%emt 0:00:03]} Kf5 {[%emt 0:00:20]} 68. Bb7 {[%emt 0:01:17]} Kg5 {[%emt 0:00:17]} 69. Rh2 {[%emt 0:00:18]} Kf5 {[%emt 0:00:36]} 70. Bc8+ {[%emt 0:00:05]} Kg5 {[%emt 0:00:04]} 71. Rg2+ {[%emt 0:00:11]} Kf6 {[%emt 0:00:33]} 72. Rg8 {[%emt 0:00:49]} Kf7 {[%emt 0:00:21]} 73. Rd8 {[%emt 0:01:00]} Ke7 {[%emt 0:00:10]} 74. Rd7+ {[%emt 0:00:05]} Kf6 {[%emt 0:00:09]} 75. Rd6+ {[%emt 0:00:15]} Kg5 {[%emt 0:00:29]} 76. Bb7 {[%emt 0:00:33]} Kf5 {[%emt 0:00:23]} 77. Rd8 {[%emt 0:00:26]} Kf6 {[%emt 0:00:38]} 78. Kg3 {[%emt 0:00:23]} Kf5 {[%emt 0:00:23]} 79. Rf8+ {[%emt 0:00:24]} Kg5 {[%emt 0:00:05]} 80. Bf3 {[%emt 0:00:21]} Bc5 {[%emt 0:00:52]} 81. Rf7 {[%emt 0:01:11]} Bd4 {[%emt 0:00:21]} 82. Bd5 {[%emt 0:00:58]} Kg6 {[%emt 0:00:19]} 83. Rf8 {[%emt 0:00:51]} Bc5 {[%emt 0:00:17]} 84. Re8 {[%emt 0:00:15]} Bd4 {[%emt 0:00:21]} 85. Kh4 {[%emt 0:00:16]} Kf5 {[%emt 0:00:12]} 86. Rf8+ {[%emt 0:00:06]} Kg6 {[%emt 0:00:05]} 87. Ba2 {[%emt 0:00:31]} Kg7 {[%emt 0:01:05]} 88. Rf3 {[%emt 0:00:25]} Kg6 {[%emt 0:01:55]} 89. Bb1+ {[%emt 0:00:16]} Kh6 {[%emt 0:00:06]} 90. Rf7 {[%emt 0:00:48]} e4 {[%emt 0:00:10]} 91. Rf4 {[%emt 0:00:33]} Be5 {[%emt 0:01:41]} 92. Rxf2 {[%emt 0:00:10]} 1-0

[Event "EYCC Girls U20 2021"]
[Site "Tornelo"]
[Date "2021.10.15"]
[Round "1.3"]
[White "Bucur, Denisa-Andreea"]
[Black "Radeva, Viktoria"]
[Result "1/2-1/2"]
[ECO "D37"]
[WhiteElo "2049"]
[BlackElo "2314"]
[Annotator "NA"]
[PlyCount "58"]
[EventDate "2021.10.15"]
[EventType "swiss"]
[EventCountry "NET"]
[SourceTitle "playchess.com"]
[Source "ChessBase"]
[SourceQuality "1"]
[TimeControl "5400+30"]

1. d4 {[%emt 0:00:30]} d5 {[%emt 0:00:46]} 2. c4 {[%emt 0:00:07]} e6 {[%emt 0:00:08]} 3. Nc3 {[%emt 0:00:06]} a6 {[%emt 0:00:17]} 4. cxd5 {[%emt 0:00:21]} exd5 {[%emt 0:00:11]} 5. Nf3 {[%emt 0:01:16]} Nf6 {[%emt 0:00:16]} 6. Bg5 {[%emt 0:00:24]} Be6 {[%emt 0:00:25]} 7. e3 {[%emt 0:00:20]} Nbd7 {[%emt 0:00:26]} 8. Bd3 {[%emt 0:00:47]} Bd6 {[%emt 0:00:36]} 9. O-O {[%emt 0:02:43]} c6 {[%emt 0:00:50]} 10. h3 {[%emt 0:00:50]} Qc7 {[%emt 0:03:29]} 11. e4 {[%emt 0:06:08]} dxe4 {[%emt 0:03:11]} 12. Nxe4 $15 {[%emt 0:00:09]} Nxe4 {[%emt 0:27:10]} 13. Bxe4 {[%emt 0:00:08]} h6 {[%emt 0:02:32]} 14. Bd2 {[%emt 0:05:00]} Nf6 {[%emt 0:01:36]} 15. Bc2 {[%emt 0:03:25]} O-O {[%emt 0:00:42]} 16. Re1 {[%emt 0:03:36]} Rfe8 {[%emt 0:06:58]} 17. Ne5 {[%emt 0:10:00]} Rad8 {[%emt 0:03:12]} 18. Qe2 {[%emt 0:08:59]} Qb6 {[%emt 0:08:09]} 19. Bc3 {[%emt 0:02:24]} Bd5 {[%emt 0:10:22]} 20. Qd3 {[%emt 0:07:22]} Be4 {[%emt 0:10:57]} 21. Rxe4 {[%emt 0:15:36]} Bxe5 {[%emt 0:02:12]} 22. Rh4 {[%emt 0:00:58]} c5 {[%emt 0:03:24]} 23. Rd1 {[%emt 0:03:15]} cxd4 {[%emt 0:03:22]} 24. Bxd4 {[%emt 0:02:09]} Bxd4 {[%emt 0:04:07]} 25. Rxd4 {[%emt 0:00:07]} Rxd4 {[%emt 0:00:50]} 26. Qxd4 {[%emt 0:00:04]} Re1+ {[%emt 0:01:01]} 27. Kh2 {[%emt 0:00:03]} Qc7+ {[%emt 0:00:19]} 28. Qd6 {[%emt 0:01:01]} Qxd6+ {[%emt 0:01:00]} 29. Rxd6 {[%emt 0:00:04]} Kf8 {[%emt 0:01:22]} 1/2-1/2

[Event "EYCC Girls U20 2021"]
[Site "Tornelo"]
[Date "2021.10.15"]
[Round "1.4"]
[White "Nosacheva, Mariya"]
[Black "Schulze, Lara"]
[Result "1/2-1/2"]
[ECO "C78"]
[WhiteElo "2239"]
[BlackElo "2250"]
[Annotator "NA"]
[PlyCount "90"]
[EventDate "2021.10.15"]
[EventType "swiss"]
[EventCountry "NET"]
[SourceTitle "playchess.com"]
[Source "ChessBase"]
[SourceQuality "1"]
[TimeControl "5400+30"]

1. e4 {[%emt 0:00:30]} e5 {[%emt 0:00:45]} 2. Nf3 {[%emt 0:00:07]} Nc6 {[%emt 0:00:08]} 3. Bb5 {[%emt 0:02:40]} a6 {[%emt 0:00:11]} 4. Ba4 {[%emt 0:00:05]} Nf6 {[%emt 0:00:05]} 5. O-O {[%emt 0:00:15]} Bc5 {[%emt 0:00:07]} 6. c3 {[%emt 0:02:28]} b5 {[%emt 0:00:12]} 7. Bc2 {[%emt 0:01:31]} d5 {[%emt 0:00:23]} 8. exd5 {[%emt 0:00:52]} Qxd5 {[%emt 0:00:33]} 9. Re1 {[%emt 0:13:24]} O-O {[%emt 0:04:22]} 10. Bb3 $15 {[%emt 0:04:30]} Qd6 {[%emt 0:01:41]} 11. h3 {[%emt 0:02:25]} e4 {[%emt 0:20:29]} 12. d4 {[%emt 0:03:18]} exd3 {[%emt 0:01:17]} 13. Be3 {[%emt 0:02:16]} Bf5 {[%emt 0:11:33]} 14. Nh4 {[%emt 0:05:03]} Be4 {[%emt 0:01:22]} 15. Nd2 {[%emt 0:01:14]} Bg6 {[%emt 0:02:02]} 16. Nxg6 {[%emt 0:03:12]} hxg6 {[%emt 0:01:51]} 17. Bxc5 {[%emt 0:03:11]} Qxc5 {[%emt 0:00:09]} 18. Nf3 {[%emt 0:00:14]} Rad8 {[%emt 0:01:52]} 19. Re3 {[%emt 0:03:01]} Qd6 {[%emt 0:04:47]} 20. Qd2 {[%emt 0:07:34]} Rd7 {[%emt 0:03:24]} 21. Rae1 {[%emt 0:01:31]} a5 {[%emt 0:07:41]} 22. a4 {[%emt 0:01:03]} b4 {[%emt 0:01:34]} 23. Bc4 {[%emt 0:01:28]} bxc3 {[%emt 0:03:11]} 24. bxc3 {[%emt 0:00:36]} Qc5 {[%emt 0:00:22]} 25. Bb5 {[%emt 0:04:21]} Rd6 {[%emt 0:02:44]} 26. Rxd3 {[%emt 0:01:21]} Rfd8 {[%emt 0:00:33]} 27. Rxd6 {[%emt 0:01:17]} Rxd6 {[%emt 0:01:07]} 28. Qf4 {[%emt 0:00:22]} Nd8 {[%emt 0:04:00]} 29. Bc4 {[%emt 0:06:20]} Qa3 {[%emt 0:04:21]} 30. Ng5 {[%emt 0:06:52]} Rd7 {[%emt 0:12:17]} 31. Qh4 {[%emt 0:02:30]} Qxc3 {[%emt 0:01:57]} 32. Re3 {[%emt 0:05:33]} Qa1+ {[%emt 0:03:04]} 33. Kh2 {[%emt 0:00:05]} Qd4 {[%emt 0:00:52]} 34. Ne4 {[%emt 0:02:02]} Ne6 {[%emt 0:04:03]} 35. Bxe6 {[%emt 0:03:35]} fxe6 {[%emt 0:00:11]} 36. Nxf6+ {[%emt 0:01:47]} gxf6 {[%emt 0:00:33]} 37. Qh6 {[%emt 0:01:58]} Qd6+ {[%emt 0:00:09]} 38. g3 {[%emt 0:00:12]} Rg7 {[%emt 0:00:10]} 39. Rb3 {[%emt 0:00:15]} Qd4 {[%emt 0:01:26]} 40. Rb8+ {[%emt 0:00:53]} Kf7 {[%emt 0:00:04]} 41. Qh8 {[%emt 0:00:24]} Qxf2+ {[%emt 0:00:22]} 42. Kh1 {[%emt 0:00:04]} Qf1+ {[%emt 0:01:55]} 43. Kh2 {[%emt 0:00:04]} Qf2+ {[%emt 0:00:13]} 44. Kh1 {[%emt 0:00:03]} Qf1+ {[%emt 0:01:03]} 45. Kh2 {[%emt 0:00:07]} Qf2+ {[%emt 0:00:03]} 1/2-1/2

[Event "EYCC Girls U20 2021"]
[Site "Tornelo"]
[Date "2021.10.15"]
[Round "1.5"]
[White "Konecny, Sophie"]
[Black "Afonasieva, Anna"]
[Result "0-1"]
[ECO "D23"]
[WhiteElo "1864"]
[BlackElo "2227"]
[Annotator "NA"]
[PlyCount "82"]
[EventDate "2021.10.15"]
[EventType "swiss"]
[EventCountry "NET"]
[SourceTitle "playchess.com"]
[Source "ChessBase"]
[SourceQuality "1"]
[TimeControl "5400+30"]

1. d4 {[%emt 0:00:30]} d5 {[%emt 0:00:35]} 2. c4 {[%emt 0:00:17]} c6 {[%emt 0:00:04]} 3. Nf3 {[%emt 0:00:11]} Nf6 {[%emt 0:00:20]} 4. Qb3 {[%emt 0:00:12]} dxc4 {[%emt 0:00:14]} 5. Qxc4 {[%emt 0:00:08]} Bf5 {[%emt 0:00:02]} 6. g3 {[%emt 0:01:44]} e6 {[%emt 0:00:16]} 7. Bg2 {[%emt 0:02:17]} Nbd7 {[%emt 0:00:38]} 8. O-O {[%emt 0:02:42]} Be7 {[%emt 0:00:19]} 9. Nc3 {[%emt 0:02:22]} O-O {[%emt 0:00:07]} 10. Re1 {[%emt 0:04:09]} h6 {[%emt 0:02:37]} 11. e4 {[%emt 0:05:15]} Bh7 {[%emt 0:01:42]} 12. a3 $14 {[%emt 0:04:00]} a5 {[%emt 0:02:03]} 13. b3 {[%emt 0:03:30]} Rc8 {[%emt 0:08:56]} 14. b4 {[%emt 0:08:54]} axb4 {[%emt 0:09:49]} 15. axb4 {[%emt 0:01:00]} Qb6 {[%emt 0:00:46]} 16. Ba3 {[%emt 0:03:53]} Ra8 {[%emt 0:01:37]} 17. Qb3 {[%emt 0:08:53]} Rfd8 {[%emt 0:03:17]} 18. Na4 {[%emt 0:05:33]} Qc7 {[%emt 0:05:13]} 19. Nd2 {[%emt 0:07:19]} e5 {[%emt 0:04:56]} 20. Bb2 {[%emt 0:02:40]} b5 {[%emt 0:07:08]} 21. Nc5 {[%emt 0:03:29]} Rxa1 {[%emt 0:01:56]} 22. Rxa1 {[%emt 0:07:13]} Nxc5 {[%emt 0:00:34]} 23. bxc5 {[%emt 0:00:21]} exd4 {[%emt 0:02:05]} 24. Qb4 {[%emt 0:02:37]} d3 {[%emt 0:02:32]} 25. Ra6 {[%emt 0:05:02]} Nd7 {[%emt 0:07:39]} 26. Bd4 {[%emt 0:03:35]} Qc8 {[%emt 0:04:56]} 27. Ra7 {[%emt 0:01:40]} Bf6 {[%emt 0:01:42]} 28. Bh3 {[%emt 0:06:10]} Bxd4 {[%emt 0:06:10]} 29. Qxd4 {[%emt 0:00:07]} Nf8 {[%emt 0:00:19]} 30. Bxc8 {[%emt 0:02:39]} Rxd4 {[%emt 0:00:07]} 31. f3 {[%emt 0:00:59]} g5 {[%emt 0:01:34]} 32. Rc7 {[%emt 0:00:46]} Ng6 {[%emt 0:03:31]} 33. Rxc6 {[%emt 0:01:24]} Ne5 {[%emt 0:00:46]} 34. Rxh6 {[%emt 0:02:08]} Nc4 {[%emt 0:01:21]} 35. Nb3 {[%emt 0:02:43]} d2 {[%emt 0:01:17]} 36. Nxd2 {[%emt 0:00:05]} Rxd2 {[%emt 0:01:24]} 37. Ra6 {[%emt 0:01:43]} b4 {[%emt 0:01:25]} 38. c6 {[%emt 0:00:44]} b3 {[%emt 0:00:18]} 39. Ra1 {[%emt 0:00:31]} b2 {[%emt 0:00:07]} 40. Rb1 {[%emt 0:00:05]} Na3 {[%emt 0:01:36]} 41. c7 {[%emt 0:00:57]} Nxb1 {[%emt 0:00:22]} 0-1

[Event "EYCC Girls U20 2021"]
[Site "Tornelo"]
[Date "2021.10.15"]
[Round "2.1"]
[White "Heydarova, Aytaj"]
[Black "Afonasieva, Anna"]
[Result "0-1"]
[ECO "B99"]
[WhiteElo "1637"]
[BlackElo "2227"]
[Annotator "NA"]
[PlyCount "92"]
[EventDate "2021.10.15"]
[EventType "swiss"]
[EventCountry "NET"]
[SourceTitle "playchess.com"]
[Source "ChessBase"]
[SourceQuality "1"]
[TimeControl "5400+30"]

1. e4 {[%emt 0:00:30]} c5 {[%emt 0:00:53]} 2. Nf3 {[%emt 0:00:05]} d6 {[%emt 0:00:04]} 3. d4 {[%emt 0:00:02]} cxd4 {[%emt 0:00:07]} 4. Nxd4 {[%emt 0:00:02]} Nf6 {[%emt 0:00:04]} 5. Nc3 {[%emt 0:00:02]} a6 {[%emt 0:00:03]} 6. Bg5 {[%emt 0:00:02]} e6 {[%emt 0:00:39]} 7. f4 {[%emt 0:00:04]} Be7 {[%emt 0:00:17]} 8. Qf3 {[%emt 0:03:48]} Nbd7 {[%emt 0:04:46]} 9. O-O-O {[%emt 0:01:51]} Qc7 {[%emt 0:02:43]} 10. g4 {[%emt 0:05:06]} h6 {[%emt 0:10:45]} 11. Bxf6 {[%emt 0:10:59]} Bxf6 {[%emt 0:01:45]} 12. h4 {[%emt 0:04:44]} Qc5 {[%emt 0:12:20]} 13. Nce2 {[%emt 0:07:28]} Nf8 $14 {[%emt 0:16:54]} 14. f5 {[%emt 0:13:18]} Bd7 {[%emt 0:03:18]} 15. Nb3 {[%emt 0:06:39]} Qc7 {[%emt 0:01:36]} 16. Qe3 {[%emt 0:12:43]} Rc8 {[%emt 0:08:54]} 17. c3 {[%emt 0:02:34]} Bb5 {[%emt 0:07:11]} 18. Ned4 {[%emt 0:01:27]} Bxf1 {[%emt 0:00:53]} 19. Rdxf1 {[%emt 0:00:05]} Qe7 {[%emt 0:01:01]} 20. Qg3 {[%emt 0:08:45]} a5 {[%emt 0:03:22]} 21. Nb5 {[%emt 0:01:34]} Be5 {[%emt 0:00:33]} 22. Qd3 {[%emt 0:03:06]} a4 {[%emt 0:00:57]} 23. Na5 {[%emt 0:00:45]} Rc5 {[%emt 0:06:25]} 24. b4 {[%emt 0:02:17]} axb3 {[%emt 0:01:22]} 25. Nxb3 {[%emt 0:00:06]} Rc6 {[%emt 0:02:43]} 26. Kb2 {[%emt 0:02:51]} Nd7 {[%emt 0:00:52]} 27. fxe6 {[%emt 0:02:22]} fxe6 {[%emt 0:00:26]} 28. N5d4 {[%emt 0:02:44]} Rc7 {[%emt 0:02:52]} 29. g5 {[%emt 0:02:31]} hxg5 {[%emt 0:03:06]} 30. hxg5 {[%emt 0:00:07]} Rxh1 {[%emt 0:00:23]} 31. Rxh1 {[%emt 0:00:04]} Qxg5 {[%emt 0:00:18]} 32. Qh3 {[%emt 0:04:09]} Nf8 {[%emt 0:00:22]} 33. Rf1 {[%emt 0:00:27]} Bf6 {[%emt 0:01:34]} 34. Rf3 {[%emt 0:01:28]} Ke7 {[%emt 0:01:02]} 35. Qf1 {[%emt 0:00:56]} Qh4 {[%emt 0:01:37]} 36. Nb5 {[%emt 0:00:52]} Rc6 {[%emt 0:00:59]} 37. N5d4 {[%emt 0:01:26]} Rc8 {[%emt 0:00:14]} 38. Rf4 {[%emt 0:00:21]} Qh2+ {[%emt 0:00:13]} 39. Rf2 {[%emt 0:00:08]} Qe5 {[%emt 0:00:13]} 40. Qd3 {[%emt 0:00:20]} Nd7 {[%emt 0:00:22]} 41. Qb5 {[%emt 0:01:17]} Qxb5 {[%emt 0:00:31]} 42. Nxb5 {[%emt 0:00:02]} Nb6 {[%emt 0:01:11]} 43. Rf3 {[%emt 0:00:23]} Rh8 {[%emt 0:00:55]} 44. Na5 {[%emt 0:00:40]} Na4+ {[%emt 0:00:14]} 45. Kb3 {[%emt 0:00:23]} Nc5+ {[%emt 0:00:03]} 46. Kc4 {[%emt 0:00:06]} Nxe4 {[%emt 0:00:17]} 0-1